bitfinex-derivatives/quotes_SOLF0:USTF0_20260211
["timestamp","ask_amount","ask_price","bid_price","bid_amount"]
[1770805102279,7.96311565,80.779,80.73,3.14698872]
[1770805102479,7.96311565,80.779,80.74,3.14698872]
[1770805108185,7.96311565,80.779,80.738,11.1532]
[1770805110480,7.96311565,80.779,80.74,3.14698872]
[1770805111788,7.96311565,80.779,80.75,11.1515]
[1770805114590,0.07812587,80.773,80.75,11.1515]
[1770805115793,0.07812587,80.773,80.75,14.29848872]
[1770805116986,8.07363069,80.801,80.76,3.14698872]
[1770805117186,8.07363069,80.801,80.77,3.14698872]
[1770805118888,8.07363069,80.801,80.77,3.13823561]
[1770805119287,8.07363069,80.801,80.766,11.1493]
[1770805119784,8.1498836,80.799,80.75,3.13823561]
[1770805120091,8.1498836,80.789,80.74,3.13823561]
[1770805120693,8.1498836,80.789,80.741,11.1528]
[1770805121787,8.1498836,80.789,80.715,128.1]
[1770805121788,8.1498836,80.789,80.751,11.1514]
[1770805122888,8.11474702,80.801,80.761,11.15]
[1770805124186,8.11474702,80.801,80.773,0.07831622]
[1770805134497,3.13823561,80.78,80.73,3.13823561]
[1770805134704,8.0510698,80.779,80.72,3.13823561]
[1770805135794,8.0510698,80.779,80.734,11.1537]
[1770805135991,8.0510698,80.779,80.72,3.13823561]
[1770805136199,3.13823561,80.76,80.71,3.13823561]
[1770805136394,8.04274966,80.759,80.71,3.13823561]
[1770805137697,8.04274966,80.759,80.715,11.1563]
[1770805141809,8.04274966,80.759,80.726,11.1548]
[1770805142394,8.04274966,80.759,80.72,3.13823561]
[1770805142602,8.06840144,80.749,80.718,11.1559]
[1770805143607,3.13823561,80.74,80.69,3.13823561]
[1770805143904,8.06840144,80.749,80.71,3.13823561]
[1770805144102,3.13823561,80.76,80.68,155.9]
[1770805144103,8.03881306,80.773,80.733,11.1539]
[1770805144303,8.03881306,80.773,80.73,3.13823561]
[1770805144509,8.03881306,80.773,80.74,3.13823561]
[1770805144798,3.13823561,80.79,80.74,3.13823561]
[1770805144799,8.03881306,80.785,80.746,11.1521]
[1770805145202,3.13823561,80.79,80.69,173.5989]
[1770805145203,3.13823561,80.79,80.707,23.11907054]
[1770805145401,0.07828767,80.774,80.756,11.1507]
[1770805145905,8.03881306,80.798,80.756,11.1507]
[1770805146902,8.0977441,80.779,80.706,23.11907054]
[1770805147106,8.0977441,80.779,80.72,3.13823561]
[1770805147701,8.0977441,80.779,80.734,11.1537]
[1770805149513,8.0977441,80.779,80.743,11.1524]
[1770805151208,8.0977441,80.779,80.734,11.1538]
[1770805153006,7.90976274,80.777,80.725,11.155]
[1770805154199,7.90976274,80.777,80.732,11.154]
[1770805163424,0.07845349,80.763,80.732,11.154]
[1770805171429,7.81924529,80.762,80.72,14.29393561]
[1770805173132,7.81924529,80.762,80.677,37.17]
[1770805173133,11.1522,80.746,80.702,483.33087502]
[1770805173536,18.99208204,80.746,80.702,483.33087502]
[1770805174639,18.99208204,80.746,80.71,3.13823561]
[1770805175033,7.83988204,80.745,80.71,3.13823561]
[1770805175228,7.83988204,80.745,80.702,483.33087502]
[1770805179139,7.80113466,80.729,80.67,3.14347132]
[1770805179337,7.80113466,80.719,80.67,3.14347132]
[1770805179843,8.84269916,80.742,80.66,3.14347132]
[1770805179844,7.80385189,80.709,80.66,3.14347132]
[1770805180343,7.80385189,80.709,80.67,3.14347132]
[1770805181442,7.80385189,80.709,80.68,3.14347132]
[1770805182331,7.80385189,80.709,80.67,3.14347132]
[1770805183832,0.07840972,80.698,80.68,3.14347132]
[1770805184445,7.82819551,80.724,80.68,3.14347132]
[1770805185242,0.07820879,80.71,80.67,3.14347132]
[1770805185544,7.95411283,80.71,80.67,3.14347132]
[1770805185738,7.87590404,80.71,80.67,3.14347132]
[1770805185939,7.87590404,80.722,80.68,3.14347132]
[1770805187044,22.2972,80.772,80.7,3.14347132]
[1770805187045,7.87590404,80.735,80.7,3.14347132]
[1770805188138,7.87590404,80.735,80.69,3.14347132]
[1770805189645,7.87590404,80.735,80.648,23.11907054]
[1770805189646,7.87175907,80.728,80.68,3.14347132]
[1770805190541,7.87157789,80.725,80.68,3.14347132]
[1770805191751,7.83967692,80.719,80.67,3.14347132]
[1770805192343,7.83967692,80.719,80.68,3.14347132]
[1770805192850,7.83967692,80.718,80.68,3.14347132]
[1770805193559,7.81090263,80.716,80.68,3.14533664]
[1770805194558,7.81090263,80.716,80.68,14.30653664]
[1770805195048,7.81090263,80.716,80.69,3.14533664]
[1770805195242,18.96570263,80.727,80.69,3.14533664]
[1770805195443,7.81090263,80.726,80.69,3.14533664]
[1770805196156,0.07879377,80.716,80.69,3.14533664]
[1770805198442,0.07879377,80.716,80.68,14.30653664]
[1770805198646,7.88662438,80.716,80.68,14.30653664]
[1770805200752,7.88662438,80.716,80.686,11.1604]
[1770805201248,0.07879377,80.716,80.686,11.1604]
[1770805207058,7.89040671,80.716,80.678,11.1615]
[1770805207255,7.89040671,80.716,80.68,3.14533664]
[1770805207452,7.81161294,80.716,80.68,3.14533664]
[1770805209454,7.81161294,80.716,80.681,11.161]
[1770805210258,11.1546,80.729,80.69,3.14533664]
[1770805212560,7.80713759,80.719,80.67,3.14533664]
[1770805213862,7.78372415,80.717,80.672,11.1623]
[1770805217163,0.07851303,80.703,80.672,11.1623]
[1770805217371,7.79127575,80.702,80.643,23.11907054]
[1770805217669,7.80760308,80.689,80.64,3.14533664]
[1770805217878,7.80760308,80.679,80.63,3.14533664]
[1770805218755,7.80760308,80.669,80.62,3.14533664]
[1770805218966,7.80760308,80.669,80.63,3.14533664]
[1770805219167,18.97080308,80.667,80.63,3.14533664]
[1770805219971,7.75766497,80.666,80.63,3.14533664]
[1770805220167,7.75766497,80.666,80.62,14.31493664]
[1770805220665,7.75766497,80.666,80.62,11.1696]
[1770805220963,7.75766497,80.666,80.62,14.31493664]
[1770805221660,7.75766497,80.666,80.63,3.14533664]
[1770805222361,7.75766497,80.666,80.591,2.15775816]
[1770805222362,7.75083286,80.678,80.64,3.14533664]
[1770805223568,7.81005299,80.677,80.64,3.14533664]
[1770805223773,7.81005299,80.677,80.63,3.14533664]
[1770805224767,7.81005299,80.675,80.63,3.14533664]
[1770805226871,7.81005299,80.675,80.64,3.14533664]
[1770805227061,7.81005299,80.675,80.63,14.31343664]
[1770805227873,7.77225945,80.668,80.63,3.14533664]
[1770805232274,7.77240567,80.689,80.64,3.14533664]
[1770805233282,7.77240567,80.689,80.644,11.1662]
[1770805233874,7.77240567,80.689,80.605,350.15936622]
[1770805233875,7.77240567,80.689,80.651,11.1652]
[1770805234968,7.73937881,80.706,80.66,3.14533664]
[1770805235272,7.73937881,80.706,80.67,3.14533664]
[1770805235472,7.73937881,80.706,80.66,3.14533664]
[1770805235765,7.74243009,80.718,80.672,11.1623]
[1770805235962,7.74243009,80.718,80.69,3.14533664]
[1770805236365,7.74243009,80.718,80.68,3.14533664]
[1770805236771,0.07848281,80.712,80.68,3.14533664]
[1770805237175,7.74243009,80.711,80.622,23.11907054]
[1770805237380,7.74243009,80.711,80.67,3.14533664]
[1770805237768,7.71400787,80.723,80.68,3.14533664]
[1770805237969,7.71400787,80.723,80.69,3.14533664]
[1770805238869,7.71400787,80.723,80.68,3.14462364]
[1770805244385,7.71400787,80.723,80.681,11.161]
[1770805245289,7.64303564,80.749,80.71,3.14462364]
[1770805245489,7.64303564,80.749,80.72,3.14462364]
[1770805245889,7.66371763,80.761,80.72,3.14462364]
[1770805248187,6.16418917,80.739,80.653,98.88]
[1770805248392,6.16418917,80.739,80.69,3.14462364]
[1770805248986,6.16418917,80.739,80.7,3.14462364]
[1770805249292,6.16418917,80.739,80.701,11.1583]
[1770805249895,6.16418917,80.739,80.69,3.14462364]
[1770805250193,6.16418917,80.739,80.7,3.14462364]
[1770805250886,6.16418917,80.739,80.701,11.1583]
[1770805252388,6.12651385,80.752,80.71,3.14462364]
[1770805252694,6.12651385,80.752,80.72,3.14462364]
[1770805253092,6.165796,80.784,80.74,3.14462364]
[1770805253395,6.165796,80.784,80.682,173.6148]
[1770805253396,3.14462364,80.78,80.73,3.14462364]
[1770805253593,3.14462364,80.78,80.74,3.14462364]
[1770805253594,6.19022976,80.779,80.74,3.14462364]
[1770805253893,6.19022976,80.779,80.73,3.14462364]
[1770805254597,6.19022976,80.776,80.73,3.14462364]
[1770805254794,3.14462364,80.77,80.722,11.1554]
[1770805254994,6.19022976,80.769,80.722,11.1554]
[1770805259895,6.25125677,80.765,80.709,11.1572]
[1770805260096,6.25125677,80.765,80.71,3.14462364]
[1770805260294,3.14462364,80.76,80.71,3.14462364]
[1770805260588,6.25125677,80.759,80.71,3.14462364]
[1770805264502,6.25125677,80.759,80.726,0.0782893]
[1770805273007,6.25125677,80.759,80.73,3.14462364]
[1770805273212,6.27839923,80.771,80.74,3.14462364]
[1770805282518,6.27839923,80.771,80.689,22.32]
[1770805282519,6.24935602,80.781,80.75,3.14462364]
[1770805282819,6.24935602,80.792,80.76,3.14462364]
[1770805283213,6.24935602,80.792,80.75,3.14462364]
[1770805283705,6.24935602,80.792,80.76,3.14462364]
[1770805285215,6.24935602,80.792,80.753,11.1512]
[1770805286618,6.24935602,80.792,80.753,5.8512]
[1770805289323,6.23761691,80.791,80.75,3.14462364]
[1770805290020,6.23761691,80.791,80.76,3.14462364]
[1770805290320,6.23761691,80.791,80.77,3.14462364]
[1770805290521,6.24069897,80.814,80.77,3.14462364]
[1770805291519,6.24377615,80.81,80.77,3.14462364]
[1770805292714,6.24377615,80.808,80.77,3.14462364]
[1770805294124,6.24377615,80.808,80.764,11.1496]
[1770805294326,6.24377615,80.808,80.781,0.07844969]
[1770805294933,6.0586379,80.805,80.76,3.14462364]
[1770805295824,6.0586379,80.805,80.755,11.1509]
[1770805295825,6.06848473,80.799,80.75,3.14462364]
[1770805296130,6.06848473,80.789,80.74,3.14462364]
[1770805296329,6.06848473,80.787,80.742,11.1527]
[1770805299038,98.8,80.788,80.76,3.14462364]
[1770805299226,6.0660542,80.797,80.76,3.14462364]
[1770805300927,6.0660542,80.797,80.76,3.13874522]
[1770805301534,6.0660542,80.797,80.751,11.1513]
[1770805302530,6.15277702,80.789,80.743,11.1524]
[1770805304940,6.15277702,80.789,80.751,11.1514]
[1770805307738,6.15277702,80.789,80.75,3.13874522]
[1770805308335,6.20301767,80.824,80.761,11.15]
[1770805308539,11.1413,80.825,80.761,11.15]
[1770805308540,6.20301767,80.809,80.77,3.13874522]
[1770805308837,0.07840725,80.778,80.76,3.13874522]
[1770805309042,0.07840725,80.778,80.753,11.1511]
[1770805309242,6.20301767,80.787,80.753,11.1511]
[1770805312938,6.21141544,80.799,80.76,3.13874522]
[1770805314739,6.21141544,80.799,80.77,3.13874522]
[1770805315644,6.21141544,80.799,80.76,3.13874522]
[1770805318139,6.14182096,80.793,80.745,11.1522]
[1770805318344,6.14182096,80.793,80.75,3.13874522]
[1770805319251,0.07808487,80.78,80.75,3.13874522]
[1770805319747,0.07808487,80.78,80.751,11.1514]
[1770805319941,0.07808487,80.78,80.76,3.13874522]
[1770805320335,6.18860561,80.807,80.77,3.13874522]
[1770805321347,15.27257214,80.858,80.727,22.3094]
[1770805321348,6.18860561,80.818,80.79,3.13763546]
[1770805321541,3.13763546,80.84,80.79,3.13763546]
[1770805321743,6.19863406,80.839,80.79,3.13763546]
[1770805322448,6.19863406,80.839,80.8,3.13763546]
[1770805324150,6.19863406,80.839,80.79,14.28373546]
[1770805324851,6.1976159,80.837,80.79,3.13763546]
[1770805325051,6.1976159,80.829,80.781,11.1472]
[1770805325248,6.1976159,80.829,80.79,3.13763546]
[1770805325647,6.1976159,80.829,80.781,11.1472]
[1770805332255,6.1976159,80.829,80.788,11.1463]
[1770805332462,6.1976159,80.829,80.79,2.85189975]
[1770805333258,6.1976159,80.829,80.792,11.1457]
[1770805338366,6.1976159,80.829,80.799,11.1448]
[1770805338969,6.1976159,80.829,80.788,11.1462]
[1770805340065,6.18029806,80.828,80.788,11.1462]
[1770805340770,6.18035934,80.825,80.777,11.1478]
[1770805340970,6.18035934,80.809,80.77,2.85189975]
[1770805342370,6.18035934,80.809,80.775,11.148]
[1770805346070,6.18035934,80.809,80.782,11.1472]
[1770805346662,146.1,80.818,80.782,11.1472]
[1770805346860,146.1,80.818,80.791,11.1459]
[1770805347074,6.13245718,80.819,80.791,11.1459]
[1770805349578,6.13245718,80.819,80.781,11.1472]
[1770805351779,6.13245718,80.819,80.77,2.85189975]
[1770805351780,6.13245718,80.819,80.774,11.1483]
[1770805370994,6.13245718,80.819,80.774,26.56605967]
[1770805371188,6.14219991,80.831,80.79,2.85252164]
[1770805371599,6.14219991,80.831,80.793,26.56335967]
[1770805371891,6.14396088,80.842,80.793,26.56335967]
[1770805372686,11.1391,80.841,80.793,26.56335967]
[1770805372881,6.14396088,80.84,80.793,26.56335967]
[1770805373293,6.14396088,80.837,80.793,11.1456]
[1770805374694,6.16221964,80.835,80.793,11.1456]
[1770805375394,6.16221964,80.833,80.793,11.1456]
[1770805376395,6.15573579,80.832,80.793,11.1456]
[1770805380598,6.15573579,80.832,80.799,11.1447]
[1770805385404,6.15573579,80.832,80.806,11.1439]
[1770805385904,136.6764,80.833,80.813,11.1429]
[1770805386202,6.16225149,80.869,80.82,2.85252164]
[1770805386403,6.16225149,80.867,80.82,2.85252164]
[1770805387509,6.16225149,80.867,80.821,11.1418]
[1770805394503,6.12967736,80.865,80.821,11.1418]
[1770805396601,6.12730922,80.863,80.821,11.1418]
[1770805402405,6.12730922,80.863,80.82,2.85252164]
[1770805402719,6.12730922,80.863,80.827,11.1409]
[1770805405724,169.28,80.866,80.83,2.85252164]
[1770805406105,6.14239042,80.873,80.83,2.85252164]
[1770805407916,11.1349,80.872,80.83,2.85252164]
[1770805408115,6.15873462,80.871,80.83,2.85252164]
[1770805408316,6.15873462,80.871,80.843,0.07794549]
[1770805408925,6.15873462,80.868,80.83,2.85252164]
[1770805410122,6.15873462,80.868,80.814,15.41775967]
[1770805410324,0.07796459,80.857,80.83,2.85252164]
[1770805410519,6.16544872,80.878,80.84,2.85252164]
[1770805411717,6.13867962,80.876,80.833,11.1401]
[1770805417629,6.09540843,80.869,80.825,11.1412]
[1770805417930,0.79540843,80.867,80.81,4.2184996]
[1770805418132,2.85252164,80.86,80.811,1.36597796]
[1770805418332,179.96,80.868,80.825,1.36597796]
[1770805419836,179.96,80.868,80.827,11.1409]
[1770805420036,3.89990901,80.867,80.827,11.1409]
[1770805420433,3.89990901,80.859,80.82,11.1419]
[1770805421932,3.89990901,80.839,80.796,15.41775967]
[1770805422130,3.89990901,80.839,80.794,1.42217456]
[1770805422934,3.89990901,80.829,80.784,1.42217456]
[1770805423241,3.89990901,80.828,80.784,1.42217456]
[1770805423742,3.89990901,80.828,80.791,11.1459]
[1770805428849,3.89990901,80.828,80.792,1.41450809]
[1770805439343,3.89990901,80.828,80.797,1.20883599]
[1770805439549,3.86199549,80.838,80.801,1.17668599]
[1770805440153,3.86199549,80.838,80.788,15.41775967]
[1770805440154,3.86199549,80.848,80.811,1.17668599]
[1770805441454,3.86199549,80.839,80.791,1.17668599]
[1770805442445,3.86199549,80.839,80.801,1.141119]
[1770805442652,3.86199549,80.839,80.803,1.141119]
[1770805443757,3.86199549,80.839,80.807,11.1437]
[1770805445558,3.86199549,80.839,80.815,0.07803114]
[1770805449455,3.86199549,80.862,80.821,1.26141698]
[1770805450856,3.86199549,80.862,80.831,1.25374186]
[1770805454464,3.86199549,80.873,80.838,1.25792324]
[1770805454665,11.1332,80.884,80.841,1.25792324]
[1770805454666,3.86199549,80.883,80.841,1.25792324]
[1770805457063,3.86199549,80.883,80.844,1.25013679]
[1770805457262,3.86199549,80.883,80.85,2.85048016]
[1770805457459,3.86199549,80.883,80.851,1.25013679]
[1770805459266,3.86199549,80.894,80.855,1.24883862]
[1770805459663,3.86199549,80.894,80.86,2.85048016]
[1770805460460,3.86199549,80.894,80.86,4.05644635]
[1770805460665,3.86199549,80.894,80.85,2.85048016]
[1770805460867,3.86199549,80.894,80.851,1.20534966]
[1770805461466,3.75242784,80.934,80.88,2.85048016]
[1770805461667,3.75242784,80.919,80.871,1.15978612]
[1770805462168,3.75242784,80.909,80.86,1.15978612]
[1770805463774,3.75242784,80.902,80.86,1.15978612]
[1770805470069,3.77232601,80.889,80.845,1.1483472]
[1770805471379,3.77232601,80.879,80.833,1.1483472]
[1770805472378,3.77232601,80.879,80.834,11.14]
[1770805474775,3.77232601,80.879,80.805,15.41775967]
[1770805474776,3.77232601,80.859,80.811,1.03689344]
[1770805476177,3.77232601,80.859,80.815,11.1425]
[1770805476987,3.77232601,80.859,80.816,1.05576078]
[1770805478086,3.77232601,80.859,80.823,0.88070473]
[1770805478484,3.77232601,80.859,80.824,11.1414]
[1770805478789,3.77232601,80.859,80.825,0.88070473]
[1770805480386,3.77232601,80.859,80.82,2.85048016]
[1770805480689,3.77232601,80.859,80.813,0.86508875]
[1770805482488,3.77232601,80.859,80.814,11.1428]
[1770805485490,3.77232601,80.859,80.814,12.08744319]
[1770805487186,3.77232601,80.859,80.81,2.84967844]
[1770805487187,3.77232601,80.859,80.816,12.0859883]
[1770805487990,3.77232601,80.859,80.817,0.941191]
[1770805489092,3.77232601,80.855,80.817,0.941191]
[1770805489283,3.77232601,80.855,80.82,2.84967844]
[1770805489484,3.77232601,80.855,80.817,0.941191]
[1770805489691,3.77232601,80.855,80.811,0.90986559]
[1770805490690,3.77232601,80.855,80.813,11.1428]
[1770805491284,3.92095398,80.851,80.811,0.90986559]
[1770805492203,3.92095398,80.849,80.804,11.1441]
[1770805493092,3.92095398,80.849,80.806,12.04009292]
[1770805493390,3.92095398,80.849,80.807,0.89629292]
[1770805494690,3.92095398,80.849,80.81,2.84967844]
[1770805495394,3.92095398,80.845,80.807,0.89629292]
[1770805495693,3.92095398,80.845,80.81,2.84967844]
[1770805496398,3.92095398,80.843,80.8,2.84967844]
[1770805496697,3.92095398,80.843,80.801,0.9266722]
[1770805496894,3.92095398,80.835,80.787,0.9266722]
[1770805497094,3.92095398,80.819,80.772,0.9266722]
[1770805498196,3.92095398,80.812,80.772,0.9266722]
[1770805498493,3.92095398,80.812,80.761,0.9181362]
[1770805498696,3.92095398,80.804,80.761,0.9181362]
[1770805500285,3.92095398,80.816,80.781,0.98808805]
[1770805500692,15.06395398,80.813,80.781,0.98808805]
[1770805500892,3.92095398,80.812,80.77,2.84967844]
[1770805501296,3.92095398,80.812,80.78,2.84967844]
[1770805501694,3.92095398,80.812,80.77,3.83776649]
[1770805502393,3.92095398,80.807,80.77,3.83776649]
[1770805504198,3.92095398,80.807,80.771,0.87322155]
[1770805506896,3.92095398,80.805,80.771,0.87322155]
[1770805508395,3.92095398,80.805,80.78,2.84967844]
[1770805509199,3.92095398,80.805,80.771,0.87322155]
[1770805510604,3.92095398,80.805,80.78,2.84967844]
[1770805510800,3.92095398,80.805,80.771,0.87322155]
[1770805512604,3.92095398,80.804,80.771,0.87322155]
[1770805512801,3.92095398,80.804,80.762,11.1499]
[1770805512992,3.92095398,80.804,80.761,0.79491982]
[1770805513903,3.92095398,80.796,80.761,0.79491982]
[1770805515305,11.1436,80.808,80.77,2.84967844]
[1770805515604,3.92095398,80.807,80.762,11.1499]
[1770805516503,3.92095398,80.798,80.76,2.84967844]
[1770805516705,3.92095398,80.798,80.74,2.84967844]
[1770805517402,478.13049062,80.849,80.74,2.84967844]
[1770805517403,3.92095398,80.781,80.74,2.84967844]
[1770805517910,3.92095398,80.781,80.735,11.1537]
[1770805518700,3.92095398,80.769,80.72,2.84967844]
[1770805518904,3.92095398,80.769,80.714,0.88086049]
[1770805519407,2.84967844,80.77,80.714,0.88086049]
[1770805519408,3.92095398,80.763,80.714,0.88086049]
[1770805519604,3.92095398,80.749,80.688,0.88250396]
[1770805519804,3.92095398,80.749,80.69,2.84967844]
[1770805520514,3.92095398,80.749,80.69,3.81830673]
[1770805520814,3.92095398,80.749,80.679,328.12706941]
[1770805520815,4.00722377,80.733,80.681,0.96862829]
[1770805521012,4.00722377,80.733,80.69,2.84967844]
[1770805521209,4.00722377,80.749,80.71,2.84967844]
[1770805521510,4.00722377,80.749,80.72,2.84967844]
[1770805522211,4.00722377,80.769,80.73,2.84967844]
[1770805522712,4.00722377,80.769,80.74,2.84967844]
[1770805523300,348.2159,80.869,80.76,2.84967844]
[1770805523301,4.00722377,80.781,80.76,2.84967844]
[1770805523608,4.00722377,80.802,80.76,2.84967844]
[1770805523908,4.00722377,80.799,80.75,2.84967844]
[1770805525208,4.00722377,80.799,80.75,3.74308764]
[1770805525403,4.00722377,80.799,80.751,0.8934092]
[1770805525607,4.01482465,80.796,80.751,0.8934092]
[1770805526605,4.01482465,80.796,80.76,2.84967844]
[1770805526806,4.01482465,80.794,80.76,2.84967844]
[1770805527515,4.01482465,80.792,80.76,2.84967844]
[1770805528118,4.01482465,80.79,80.741,0.8883241]
[1770805528310,4.01482465,80.789,80.74,2.84967844]
[1770805528515,2.84967844,80.79,80.74,2.84967844]
[1770805528516,4.01482465,80.783,80.74,2.84967844]
[1770805528815,4.01482465,80.767,80.73,2.84967844]
[1770805531217,4.01482465,80.767,80.74,2.84967844]
[1770805531517,4.01482465,80.809,80.76,2.84967844]
[1770805532819,15.16032465,80.795,80.76,2.84967844]
[1770805533718,15.16062465,80.793,80.76,2.84967844]
[1770805533920,4.01482465,80.792,80.76,2.84967844]
[1770805534715,11.146,80.791,80.76,2.84967844]
[1770805534917,15.16082465,80.791,80.76,2.84967844]
[1770805535924,11.1447,80.8,80.761,0.92745353]
[1770805536122,4.01482465,80.799,80.761,0.92745353]
[1770805538020,4.01482465,80.799,80.77,2.84967844]
[1770805538618,4.01482465,80.811,80.78,2.84967844]
[1770805539213,478.13049062,80.849,80.771,0.89456199]
[1770805539214,4.01482465,80.817,80.79,2.84967844]
[1770805539717,4.01482465,80.817,80.78,2.84967844]
[1770805540721,4.01482465,80.815,80.78,2.84967844]
[1770805540926,4.01482465,80.815,80.77,2.84967844]
[1770805541120,4.01482465,80.815,80.76,2.84967844]
[1770805541321,4.01482465,80.815,80.78,2.84967844]
[1770805541525,4.01482465,80.815,80.79,2.84967844]
[1770805541719,478.13049062,80.849,80.79,2.84967844]
[1770805541720,4.01482465,80.848,80.79,2.84967844]
[1770805541921,4.01482465,80.848,80.8,2.84967844]
[1770805542320,11.1407,80.83,80.8,2.84967844]
[1770805542617,4.01482465,80.829,80.791,1.00399277]
[1770805543015,4.01482465,80.829,80.8,2.84967844]
[1770805543321,478.13049062,80.849,80.8,2.84967844]
[1770805543322,4.01482465,80.848,80.8,2.84967844]
[1770805543622,11.1409,80.828,80.791,1.00399277]
[1770805543925,4.01482465,80.827,80.791,1.00399277]
[1770805544122,478.13049062,80.849,80.791,1.00399277]
[1770805544123,4.01482465,80.848,80.8,2.84967844]
[1770805545024,4.01482465,80.844,80.8,2.84967844]
[1770805546720,4.01482465,80.84,80.8,2.84967844]
[1770805547024,4.01482465,80.839,80.791,1.00399277]
[1770805547817,4.01482465,80.837,80.791,1.00399277]
[1770805550829,3.82255983,80.833,80.791,1.00399277]
[1770805553021,2.85106461,80.84,80.791,1.00399277]
[1770805553022,3.82255983,80.828,80.791,1.00399277]
[1770805553727,0.07866529,80.818,80.791,1.00399277]
[1770805555930,3.82255983,80.817,80.783,11.1469]
[1770805560831,3.82255983,80.817,80.783,12.11236056]
[1770805561235,3.82255983,80.817,80.784,0.96546056]
[1770805564235,3.82255983,80.817,80.78,3.87681417]
[1770805564437,3.82255983,80.817,80.78,1.0251455]
[1770805565037,3.82255983,80.817,80.78,3.87681417]
[1770805565738,3.82255983,80.814,80.767,11.1491]
[1770805566833,3.82255983,80.812,80.767,1.12056106]
[1770805567036,3.82255983,80.809,80.76,2.85166867]
[1770805567632,0.07906295,80.793,80.76,2.85166867]
[1770805568233,0.07906295,80.793,80.761,11.39]
[1770805569535,3.90162278,80.793,80.761,11.39]
[1770805571337,3.82255983,80.79,80.761,11.39]
[1770805577646,0.07906295,80.793,80.762,1.15299957]
[1770805578347,0.07906295,80.793,80.78,4.0016737]
[1770805579050,0.07906295,80.793,80.78,1.15000503]
[1770805582155,11.1422,80.818,80.781,1.07612685]
[1770805582859,3.85742941,80.817,80.781,1.07612685]
[1770805583153,3.85742941,80.815,80.77,3.92779552]
[1770805583460,3.85742941,80.826,80.771,1.07612685]
[1770805583756,22.2732,80.859,80.761,11.39]
[1770805583757,3.85742941,80.823,80.781,1.06538632]
[1770805584558,14.99732941,80.835,80.791,1.06538632]
[1770805585057,3.85742941,80.834,80.8,2.85166867]
[1770805586667,3.94056179,80.832,80.784,1.0131162]
[1770805587165,4.02016984,80.825,80.784,1.0131162]
[1770805590258,0.07960805,80.825,80.79,2.85166867]
[1770805590464,0.07960805,80.825,80.801,1.06323883]
[1770805591059,3.94056179,80.838,80.801,1.06323883]
[1770805592863,3.94056179,80.849,80.811,1.0626273]
[1770805593260,3.94056179,80.849,80.814,1.0626273]
[1770805593473,3.94056179,80.879,80.821,1.0626273]
[1770805594275,3.94056179,80.879,80.83,2.85166867]
[1770805594866,3.94056179,80.87,80.83,2.85166867]
[1770805595773,0.07812381,80.858,80.83,2.85166867]
[1770805596677,3.94056179,80.857,80.82,2.85166867]
[1770805597175,3.94056179,80.857,80.812,12.2153672]
[1770805597376,3.94056179,80.857,80.813,1.0723672]
[1770805597769,3.94056179,80.857,80.83,2.85166867]
[1770805598176,0.07952839,80.843,80.83,2.85166867]
[1770805598379,3.94056179,80.868,80.83,2.85166867]
[1770805601678,11.1356,80.867,80.83,2.85166867]
[1770805601881,3.94056179,80.866,80.83,2.85166867]
[1770805605090,3.94056179,80.866,80.821,1.13894428]
[1770805605481,3.94056179,80.866,80.84,0.07962571]
[1770805607186,3.94056179,80.864,80.821,1.13894428]
[1770805608580,3.94056179,80.864,80.823,1.04154583]
[1770805609089,0.07983983,80.851,80.823,1.04154583]
[1770805609381,479.18848616,80.893,80.841,0.961706]
[1770805609382,3.94056179,80.875,80.841,0.961706]
[1770805610490,22.2562,80.921,80.851,0.97584474]
[1770805610491,3.85284745,80.884,80.851,0.97584474]
[1770805610693,3.85284745,80.898,80.86,2.84868684]
[1770805610884,3.85284745,80.898,80.861,0.97590514]
[1770805613382,3.85284745,80.896,80.86,2.84868684]
[1770805613586,3.85284745,80.896,80.851,0.80875048]
[1770805613983,3.85284745,80.893,80.84,2.84868684]
[1770805614192,3.85284745,80.889,80.839,0.85728223]
[1770805614582,3.85284745,80.889,80.84,11.139]
[1770805614786,3.85284745,80.889,80.841,0.85728223]
[1770805614993,3.85284745,80.889,80.807,15.41775967]
[1770805614994,3.85284745,80.889,80.85,3.70596907]
[1770805615192,3.85284745,80.889,80.851,0.85728223]
[1770805615389,3.85284745,80.889,80.857,0.07818801]
[1770805617694,14.98534745,80.889,80.857,0.07818801]
[1770805617986,3.85284745,80.888,80.857,0.07818801]
[1770805618693,11.1327,80.887,80.857,0.07818801]
[1770805618893,3.85284745,80.886,80.857,0.07818801]
[1770805619285,3.85284745,80.885,80.831,1.11800717]
[1770805619489,3.85284745,80.885,80.84,2.84868684]
[1770805620400,3.85284745,80.88,80.84,13.98778684]
[1770805621397,3.85284745,80.876,80.82,2.84868684]
[1770805621596,3.85284745,80.869,80.82,3.9624686]
[1770805621797,3.85284745,80.869,80.84,2.84868684]
[1770805622497,2.84868684,80.89,80.84,2.84868684]
[1770805622498,3.85284745,80.883,80.84,2.84868684]
[1770805625400,3.85284745,80.883,80.842,11.1389]